fUSD/lending_fUSD_20240530
["ID","MTS","AMOUNT","RATE_DAILY","PERIOD"]
[328217973,1717071267119,-2000.0,0.00033682,30]
[328217974,1717071267142,-500.0,0.00033685,30]
[328217975,1717071267165,-846.09570159,0.00033693,30]
[328217976,1717071267189,-163.23217525,0.00033699,30]
[328217977,1717071267225,-1800.0,0.00034,35]
[328217978,1717071267248,-251.73210293,0.00034,30]
[328217979,1717071267270,-1700.0,0.00034,10]
[328217980,1717071267294,-1000.0,0.00034,30]
[328217981,1717071267317,-2000.0,0.000341,12]
[328217982,1717071267339,-323.0,0.000341,23]
[328217983,1717071267363,-40866.67,0.0003437,10]
[328217984,1717071267385,-3014.76428395,0.00034394,120]
[328217985,1717071267409,-853.99,0.00034462,30]
[328217986,1717071267433,-853.99,0.00034462,30]
[328217987,1717071267456,-853.99,0.00034462,30]
[328217988,1717071267478,-853.99,0.00034462,30]
[328217989,1717071267500,-150.0,0.00034548,10]
[328217990,1717071267522,-300.0,0.00034559,120]
[328217991,1717071267544,-323.0,0.000346,23]
[328217992,1717071267567,-853.99,0.00034735,30]
[328217993,1717071267589,-853.99,0.00034735,30]
[328217994,1717071267612,-500.0,0.000349,120]
[328217995,1717071267634,-2350.0,0.000349,120]
[328217996,1717071267656,-152.40272882,0.000349,30]
[328217997,1717071267680,-1076.860608,0.0003494,14]
[328217998,1717071267703,-1000.0,0.0003496,14]
[328217999,1717071267726,-1000.0,0.0003498,14]
[328218000,1717071267750,-1000.0,0.00034984,31]
[328218001,1717071267773,-169.74345005,0.00034999,120]
[328218002,1717071267799,-50000.0,0.00035,15]
[328218003,1717071267823,-1624.72268332,0.00035,10]
[328218004,1717071267845,-500.0,0.00035,10]
[328218005,1717071267868,-21367.25181016,0.00035,30]
[328218006,1717071267893,-720.98156637,0.00035,30]
[328218007,1717071267916,-1800.0,0.00035,20]
[328218008,1717071267940,-1900.0,0.00035,20]
[328218009,1717071267962,-193.77,0.00035,10]
[328218010,1717071267984,-1029.09,0.00035,25]
[328218011,1717071268006,-1371.80826982,0.00035,30]
[328218012,1717071268029,-172.46201378,0.00035,120]
[328218013,1717071268052,-1000.0,0.00035,14]
[328218014,1717071268073,-3385.32921871,0.00035,10]
[328218015,1717071268096,-334.72893571,0.00035,10]
[328218016,1717071268117,-950.0134697,0.00035,15]
[328218017,1717071268139,-1800.0,0.00035,36]
[328218018,1717071268161,-1926.2102832,0.00035,120]
[328218019,1717071268185,-853.99,0.00035008,30]
[328218020,1717071268211,-853.99,0.00035008,30]
[328218021,1717071268233,-300.0,0.00035014,120]
[328218022,1717071268256,-2000.0,0.000351,14]
[328218023,1717071268280,-323.0,0.000351,24]
[328218024,1717071268304,-853.99,0.00035281,30]
[328218025,1717071268327,-853.99,0.00035281,30]
[328218026,1717071268352,-230.0,0.00035374,10]
[328218027,1717071268376,-300.0,0.00035468,120]
[328218028,1717071268398,-1624.7312995,0.0003549,10]
[328218029,1717071268422,-1000.0,0.000355,30]
[328218030,1717071268450,-853.99,0.00035555,30]
[328218031,1717071268473,-853.99,0.00035555,30]
[328218032,1717071268623,-10000.0,0.000356,12]
[328218033,1717071268648,-323.0,0.000356,24]
[328218034,1717071268672,-10000.0,0.000358,12]
[328218035,1717071268699,-853.99,0.00035828,30]
[328218036,1717071268723,-853.99,0.00035828,30]
[328218037,1717071268746,-300.0,0.00035923,120]
[328218038,1717071268773,-50000.0,0.00036,16]
[328218039,1717071268797,-150.0,0.00036,10]
[328218040,1717071268821,-10000.0,0.00036,12]
[328218041,1717071268845,-2000.0,0.000361,16]
[328218042,1717071268870,-323.0,0.000361,25]
[328218043,1717071268893,-853.99,0.00036101,30]
[328218044,1717071268916,-853.99,0.00036101,30]
[328218045,1717071268941,-10000.0,0.000362,12]
[328218046,1717071268965,-853.99,0.00036374,30]
[328218047,1717071268989,-853.99,0.00036374,30]
[328218048,1717071269014,-300.0,0.00036378,120]
[328218049,1717071269036,-10000.0,0.000364,12]
[328218050,1717071269059,-10000.0,0.000366,12]
[328218051,1717071269081,-323.0,0.000366,25]
[328218052,1717071269105,-853.99,0.00036648,30]
[328218053,1717071269130,-853.99,0.00036648,30]
[328218054,1717071269155,-10000.0,0.000368,12]
[328218055,1717071269177,-500.0,0.00036832,120]
[328218056,1717071269201,-853.99,0.00036921,30]
[328218057,1717071269231,-853.99,0.00036921,30]
[328218058,1717071269255,-1416.19,0.00036986,90]
[328218059,1717071269278,-1416.19,0.00036986,90]
[328218060,1717071269303,-1416.19,0.00036986,90]
[328218061,1717071269326,-1416.19,0.00036986,90]
[328218062,1717071269349,-1416.19,0.00036986,90]
[328218063,1717071269374,-1416.19,0.00036986,90]
[328218064,1717071269397,-1416.19,0.00036986,90]
[328218065,1717071269421,-1416.19,0.00036986,90]
[328218066,1717071269446,-1416.19,0.00036986,90]
[328218067,1717071269470,-1416.19,0.00036986,90]
[328218068,1717071269493,-1416.19,0.00036986,90]
[328218069,1717071269516,-1416.19,0.00036986,90]
[328218070,1717071269540,-1416.19,0.00036986,90]
[328218071,1717071269562,-1416.19,0.00036986,90]
[328218072,1717071269585,-1416.19,0.00036986,90]
[328218073,1717071269608,-1416.19,0.00036986,90]
[328218074,1717071269630,-1416.19,0.00036986,90]
[328218075,1717071269653,-1416.19,0.00036986,90]
[328218076,1717071269677,-1416.19,0.00036986,90]
[328218077,1717071269699,-1416.19,0.00036986,90]
[328218078,1717071269721,-1416.19,0.00036986,90]
[328218079,1717071269744,-1416.19,0.00036986,90]
[328218080,1717071269765,-1416.19,0.00036986,90]
[328218081,1717071269788,-1416.34398978,0.00036986,90]
[328218082,1717071269810,-1000.0,0.00036986,30]
[328218083,1717071269836,-50000.0,0.00037,17]
[328218084,1717071269858,-1000.0,0.00037,10]
[328218085,1717071269880,-250.0,0.00037,10]
[328218086,1717071269902,-10000.0,0.00037,12]
[328218087,1717071269924,-1000.0,0.00037092,30]
[328218088,1717071269948,-1031.199999,0.000371,19]
[328218089,1717071269971,-323.0,0.000371,26]
[328218090,1717071269993,-853.99,0.00037194,30]
[328218091,1717071270016,-853.99,0.00037194,30]
[328218092,1717071270041,-1000.0,0.00037197,30]
[328218093,1717071270064,-10000.0,0.000372,12]
[328218094,1717071270086,-1000.0,0.00037302,30]
[328218095,1717071270110,-10000.0,0.000374,12]
[328218096,1717071270134,-1000.0,0.00037408,30]
[328218097,1717071270158,-1000.0,0.00037513,30]
[328218098,1717071270184,-10000.0,0.000376,12]
[328218099,1717071270209,-323.0,0.000376,27]
[328218100,1717071270234,-1000.0,0.00037619,30]
[328218101,1717071270260,-1000.0,0.00037724,30]
[328218102,1717071270284,-10000.0,0.000378,12]
[328218103,1717071270307,-1000.0,0.00037829,30]
[328218104,1717071270329,-673.12826931,0.0003784,10]
[328218105,1717071270352,-1000.0,0.00037935,30]
[328218106,1717071270377,-50000.0,0.00038,18]
[328218107,1717071270399,-15170.0,0.00038,12]
[328218108,1717071270421,-250.0,0.00038,10]
[328218109,1717071270445,-198.77028181,0.00038,30]
[328218110,1717071270469,-1001.0,0.00038,30]
[328218111,1717071270492,-1250.0,0.00038,120]
[328218112,1717071270516,-1000.0,0.00038,120]
[328218113,1717071270540,-1000.0,0.0003804,30]
[328218114,1717071270564,-323.0,0.000381,27]
[328218115,1717071270587,-1000.0,0.00038145,30]
[328218116,1717071270613,-910.59236393,0.000384,33]
[328218117,1717071270636,-323.0,0.000386,28]
[328218118,1717071270658,-887.89788905,0.000389,30]
[328218119,1717071270683,-1208.0,0.00038945,30]
[328218120,1717071270708,-50000.0,0.00039,19]
[328218121,1717071270730,-14195.497,0.00039,10]
[328218122,1717071270753,-17875.0551857,0.00039,10]
[328218123,1717071270775,-250.0,0.00039,10]
[328218124,1717071270799,-90810.13987529,0.00039,14]
[328218125,1717071270825,-148609.21113677,0.00039,15]
[328218126,1717071270849,-2000.0,0.00039,30]
[328218127,1717071270876,-1168.06310343,0.00039,120]
[328218128,1717071270900,-323.0,0.000391,28]
[328218129,1717071270925,-601.23651,0.00039588,30]
[328218130,1717071270949,-723.25435642,0.000396,120]
[328218131,1717071270972,-323.0,0.000396,29]
[328218132,1717071270996,-601.23651,0.00039788,30]
[328218133,1717071271021,-1000.0,0.00039874,45]
[328218134,1717071271045,-403229.27459399,0.0003988,14]
[328218135,1717071271069,-2195.81062982,0.000399,120]
[328218136,1717071271231,-522.73974695,0.0003998,30]
[328218137,1717071271257,-450.0,0.0003998,30]
[328218138,1717071271283,-601.23651,0.00039988,30]
[328218139,1717071271311,-50000.0,0.0004,30]
[328218140,1717071271334,-3277.94414199,0.0004,10]
[328218141,1717071271356,-20000.0,0.0004,12]
[328218142,1717071271379,-2870.53840676,0.0004,20]
[328218143,1717071271403,-1000.0,0.0004,20]
[328218144,1717071271427,-3939.45137453,0.0004,120]
[328218145,1717071271450,-181.77793811,0.0004,120]
[328218146,1717071271476,-216.30672565,0.0004,30]
[328218147,1717071271498,-1596.09396533,0.0004,60]
[328218148,1717071271521,-2887.97599738,0.0004,30]
[328218149,1717071271543,-1470.10710224,0.0004,30]
[328218150,1717071271566,-1247.11821977,0.0004,120]
[328218151,1717071271590,-360.17925754,0.0004,30]
[328218152,1717071271615,-1103.17687611,0.0004,30]
[328218153,1717071271638,-160.40652032,0.0004,120]
[328218154,1717071271661,-2005.2210418,0.0004,120]
[328218155,1717071271684,-2443.937984,0.0004,30]
[328218156,1717071271707,-2443.13039524,0.0004,120]
[328218157,1717071271730,-208.94778441,0.0004,30]
[328218158,1717071271753,-250.0,0.0004,30]
[328218159,1717071271777,-250.0,0.0004,30]
[328218160,1717071271801,-1000.0,0.0004,120]
[328218161,1717071271824,-2110.0,0.0004,15]
[328218162,1717071271848,-213.62,0.0004,120]
[328218163,1717071271871,-2259.58,0.0004,120]
[328218164,1717071271895,-318.68776237,0.0004001,30]
[328218165,1717071271918,-323.0,0.000401,29]
[328218166,1717071271943,-601.23651,0.00040188,30]
[328218167,1717071271966,-7031.53985677,0.000402,120]
[328218168,1717071271990,-7031.53985677,0.000402,120]
[328218169,1717071272013,-7031.53985677,0.000402,120]
[328218170,1717071272036,-7031.53985677,0.000402,120]
[328218171,1717071272059,-7031.53985677,0.000402,120]
[328218172,1717071272083,-184.06,0.00040289,120]
[328218173,1717071272107,-150.0,0.00040469,120]
[328218174,1717071272129,-230.74593842,0.000405,30]
[328218175,1717071272152,-2110.0,0.000405,15]
[328218176,1717071272175,-601.23651,0.00040588,30]
[328218177,1717071272201,-323.0,0.000406,30]
[328218178,1717071272228,-2818.25607343,0.000407,30]
[328218179,1717071272253,-150.0,0.0004078,10]
[328218180,1717071272276,-601.23651,0.00040788,30]
[328218181,1717071272301,-150.0,0.000409,30]
[328218182,1717071272323,-278.34918468,0.00040914,120]
[328218183,1717071272347,-601.23651,0.00040988,30]
[328218184,1717071272372,-50000.0,0.00041,31]
[328218185,1717071272395,-20000.0,0.00041,14]
[328218186,1717071272418,-1274.94647838,0.00041,60]
[328218187,1717071272444,-250.0,0.00041,30]
[328218188,1717071272467,-2110.0,0.00041,15]
[328218189,1717071272491,-917.03,0.00041,120]
[328218190,1717071272513,-526.32505725,0.00041,120]
[328218191,1717071272536,-2451.10755553,0.00041,30]
[328218192,1717071272558,-2205.54081284,0.00041028,120]
[328218193,1717071272581,-833.86502353,0.00041041,120]
[328218194,1717071272604,-565.34892896,0.00041095,90]
[328218195,1717071272626,-500.0,0.00041095,90]
[328218196,1717071272648,-510.0,0.00041095,120]
[328218197,1717071272672,-176.35500123,0.000411,120]
[328218198,1717071272696,-323.0,0.000411,30]
[328218199,1717071272720,-601.23651,0.00041188,30]
[328218200,1717071272748,-510.0,0.00041369,120]
[328218201,1717071272771,-2110.0,0.000415,15]
[328218202,1717071272794,-152.89915304,0.000416,120]
[328218203,1717071272819,-323.0,0.000416,31]
[328218204,1717071272843,-510.0,0.00041643,120]
[328218205,1717071272865,-2674.88559079,0.000419,111]
[328218206,1717071272888,-1030.44482435,0.000419,14]
[328218207,1717071272920,-150.69838695,0.00041917,120]
[328218208,1717071272951,-195.2308473,0.0004199,120]
[328218209,1717071272981,-50000.0,0.00042,32]
[328218210,1717071273011,-12241.61110631,0.00042,10]
[328218211,1717071273040,-799.90263843,0.00042,120]
[328218212,1717071273069,-3207.64803376,0.00042,120]
[328218213,1717071273098,-3179.39733295,0.00042,120]
[328218214,1717071273130,-250.0,0.00042,30]
[328218215,1717071273159,-1050.0,0.00042,120]
[328218216,1717071273188,-1000.0,0.00042,120]
[328218217,1717071273218,-900.0,0.00042,43]
[328218218,1717071273249,-437.62013285,0.00042,120]
[328218219,1717071273278,-162.18522974,0.00042,120]
[328218220,1717071273303,-2110.0,0.00042,15]
[328218221,1717071273331,-3950.0,0.00042,120]
[328218222,1717071273360,-323.0,0.000421,31]
[328218223,1717071273388,-2110.0,0.000425,15]
[328218224,1717071273418,-323.0,0.000426,32]
[328218225,1717071273450,-570.81693439,0.0004265,30]
[328218226,1717071273479,-2329.0,0.000427,92]
[328218227,1717071273505,-2831.75176126,0.0004288,60]
[328218228,1717071273534,-50000.0,0.00043,33]
[328218229,1717071273565,-38386.1269724,0.00043,21]
[328218230,1717071273594,-3197.9621691,0.00043,30]
[328218231,1717071273620,-729.53207902,0.00043,120]
[328218232,1717071273648,-250.0,0.00043,30]
[328218233,1717071273678,-900.0,0.00043,44]
[328218234,1717071273705,-1000.0,0.00043,120]
[328218235,1717071273730,-2110.0,0.00043,15]
[328218236,1717071273756,-6353.23683155,0.00043,60]
[328218237,1717071273784,-527.66435206,0.00043,30]
[328218238,1717071273811,-334.414628,0.000431,33]
[328218239,1717071273837,-1778.92829364,0.000433,60]
[328218240,1717071273863,-150.0,0.0004345,20]
[328218241,1717071273890,-167.020489,0.0004349,30]
[328218242,1717071273915,-2110.0,0.000435,15]
[328218243,1717071273943,-3191.53292461,0.00043602,120]
[328218244,1717071273969,-150.0,0.0004374,15]
[328218245,1717071273996,-500.0,0.00043836,14]
[328218246,1717071274023,-10000.0,0.000439,120]
[328218247,1717071274051,-3014.26438105,0.000439,120]
[328218248,1717071274082,-50000.0,0.00044,34]
[328218249,1717071274110,-900.0,0.00044,45]
[328218250,1717071274137,-331.72652351,0.00044,120]
[328218251,1717071274163,-607.84717865,0.00044,30]
[328218252,1717071274191,-2100.0,0.00044,60]
[328218253,1717071274221,-250.0,0.00044,30]
[328218254,1717071274247,-1000.0,0.00044,120]
[328218255,1717071274274,-1000.0,0.00044,120]
[328218256,1717071274303,-2110.0,0.00044,15]
[328218257,1717071274330,-723.393371,0.00044,44]
[328218258,1717071274356,-209.72426721,0.00044458,120]
[328218259,1717071274383,-201.2151191,0.00044459,120]
[328218260,1717071274410,-450.75645615,0.00044468,120]
[328218261,1717071274438,-201.2151191,0.0004447,120]
[328218262,1717071274464,-209.72426721,0.00044471,120]
[328218263,1717071274491,-701.60251983,0.00044485,120]
[328218264,1717071274518,-701.60251983,0.00044497,120]
[328218265,1717071274545,-2110.0,0.000445,15]
[328218266,1717071274574,-450.75645615,0.00044511,120]
[328218267,1717071274601,-209.72426721,0.00044516,120]
[328218268,1717071274627,-285.54863204,0.00044524,120]
[328218269,1717071274653,-450.75645615,0.00044547,120]
[328218270,1717071274679,-285.54863204,0.00044553,120]
[328218271,1717071274708,-285.54863204,0.00044554,120]
[328218272,1717071274734,-701.60251983,0.00044566,120]
[328218273,1717071274762,-201.2151191,0.00044589,120]
[328218274,1717071274790,-757.56498866,0.000447,120]
[328218275,1717071274817,-500.0,0.00044789,20]
[328218276,1717071274841,-10359.94183233,0.000448,90]
[328218277,1717071274864,-1000.0,0.00044874,60]
[328218278,1717071274888,-311.73975732,0.000449,120]
[328218279,1717071274912,-2867.01165296,0.000449,30]
[328218280,1717071275165,-2599.17979603,0.000449,30]
[328218281,1717071275193,-2000.0,0.00044931,30]
[328218282,1717071275219,-895.54650592,0.00044942,120]
[328218283,1717071275243,-5000.0,0.00044996,40]
[328218284,1717071275267,-5000.0,0.00044996,40]
[328218285,1717071275293,-5000.0,0.00044996,40]
[328218286,1717071275317,-5000.0,0.00044996,40]
[328218287,1717071275341,-5000.0,0.00044996,40]
[328218288,1717071275366,-150.0,0.00044996,40]
[328218289,1717071275390,-5000.0,0.00044996,40]
[328218290,1717071275413,-5000.0,0.00044996,40]
[328218291,1717071275439,-5000.0,0.00044996,40]
[328218292,1717071275463,-5000.0,0.00044996,40]
[328218293,1717071275487,-5000.0,0.00044996,40]
[328218294,1717071275510,-4871.35171681,0.00044996,40]
[328218295,1717071275533,-5000.0,0.00044996,40]
[328218296,1717071275555,-5000.0,0.00044996,40]
[328218297,1717071275578,-5000.0,0.00044996,40]
[328218298,1717071275601,-1067.991724,0.00044999,120]
[328218299,1717071275626,-50000.0,0.00045,35]
[328218300,1717071275648,-677.16091306,0.00045,20]
[328218301,1717071275671,-437.92790598,0.00045,14]
[328218302,1717071275695,-2235.56653916,0.00045,14]
[328218303,1717071275718,-151.0,0.00045,120]
[328218304,1717071275741,-151.0,0.00045,120]
[328218305,1717071275764,-216.89537213,0.00045,120]
[328218306,1717071275786,-150.59648736,0.00045,120]
[328218307,1717071275809,-400.0,0.00045,90]
[328218308,1717071275832,-1377.42367295,0.00045,120]
[328218309,1717071275855,-2332.74497986,0.00045,120]
[328218310,1717071275877,-301.999996,0.00045,120]
[328218311,1717071275899,-383.97245613,0.00045,120]
[328218312,1717071275923,-3128.22052449,0.00045,45]
[328218313,1717071275947,-2332.50826983,0.00045,120]
[328218314,1717071275970,-150.0,0.00045,85]
[328218315,1717071275993,-511.85934054,0.00045,35]
[328218316,1717071276015,-410.0,0.00045,120]
[328218317,1717071276037,-2032.35529052,0.00045,30]
[328218318,1717071276060,-858.90766238,0.00045,120]
[328218319,1717071276082,-1342.95876002,0.00045,120]
[328218320,1717071276105,-2287.0,0.00045,30]
[328218321,1717071276128,-363.0,0.00045,120]
[328218322,1717071276151,-1040.53505506,0.00045,32]
[328218323,1717071276174,-20048.0,0.00045,120]
[328218324,1717071276198,-250.0,0.00045,30]
[328218325,1717071276224,-2000.0,0.00045,30]
[328218326,1717071276247,-7355.0,0.00045,120]
[328218327,1717071276269,-1088.0,0.00045,120]
[328218328,1717071276293,-900.0,0.00045,46]
[328218329,1717071276315,-2500.0,0.00045,120]
[328218330,1717071276337,-2500.0,0.00045,120]
[328218331,1717071276360,-2500.0,0.00045,120]
[328218332,1717071276382,-2500.0,0.00045,120]
[328218333,1717071276404,-2500.0,0.00045,120]
[328218334,1717071276426,-2500.0,0.00045,120]
[328218335,1717071276449,-2500.0,0.00045,120]
[328218336,1717071276471,-2500.0,0.00045,120]
[328218337,1717071276494,-2500.0,0.00045,120]
[328218338,1717071276516,-2500.0,0.00045,120]
[328218339,1717071276538,-2500.0,0.00045,120]
[328218340,1717071276560,-2500.0,0.00045,120]
[328218341,1717071276583,-2110.0,0.00045,15]
[328218342,1717071276605,-2170.2164495,0.00045,120]
[328218343,1717071276627,-2206.09,0.00045,32]
[328218344,1717071276649,-1403.0,0.00045,30]
[328218345,1717071276672,-2000.0,0.00045,120]
[328218346,1717071276694,-1144.75,0.00045,120]
[328218347,1717071276716,-1144.75,0.00045,120]
[328218348,1717071276740,-92180.47271719,0.00045,120]
[328218349,1717071276764,-150.0,0.00045061,120]
[328218350,1717071276787,-2000.0,0.00045205,30]
[328218351,1717071276811,-1000.0,0.00045421,60]
[328218352,1717071276837,-2000.0,0.00045479,30]
[328218353,1717071276865,-2236.62308989,0.000455,120]
[328218354,1717071276891,-2110.0,0.000455,15]
[328218355,1717071276915,-100000.0,0.0004567,10]
[328218356,1717071276938,-151.0,0.00045699,120]
[328218357,1717071276961,-2000.0,0.00045753,30]
[328218358,1717071276986,-150.0,0.00045844,120]
[328218359,1717071277010,-19366.12822767,0.00045888,60]
[328218360,1717071277034,-5124.9,0.0004591,111]
[328218361,1717071277062,-50000.0,0.00046,36]
[328218362,1717071277086,-629.55632191,0.00046,120]
[328218363,1717071277110,-317.22141672,0.00046,30]
[328218364,1717071277132,-1000.0,0.00046,30]
[328218365,1717071277159,-250.0,0.00046,30]
[328218366,1717071277183,-850.0,0.00046,120]
[328218367,1717071277212,-165.7,0.00046,96]
[328218368,1717071277236,-2110.0,0.00046,15]
[328218369,1717071277261,-8441.10999367,0.00046,90]
[328218370,1717071277285,-151.0,0.00046164,120]
[328218371,1717071277313,-150.0,0.0004619,20]
[328218372,1717071277336,-156.6967371,0.000463,30]
[328218373,1717071277359,-2000.0,0.00046301,30]
[328218374,1717071277382,-500.0,0.00046301,30]
[328218375,1717071277404,-500.0,0.00046301,30]
[328218376,1717071277428,-1500.0,0.00046301,30]
[328218377,1717071277452,-151.0,0.00046384,120]
[328218378,1717071277595,-2110.0,0.000465,15]
[328218379,1717071277620,-1500.0,0.00046575,30]
[328218380,1717071277802,3146.03296644,0.00046575,10]
[328218381,1717071277971,60625.18307365,0.000325,13]
[328218382,1717071278125,300.0,0.00034,14]
[328218383,1717071286072,289.6688307,0.0004,120]
[328218384,1717071286106,216.33610311,0.0004,30]
[328218385,1717071290201,1155.14510923,0.0003784,10]
[328218386,1717071293244,185.63,0.00027315,120]
[328218387,1717071294636,4917.94802895,0.00038,120]
[328218388,1717071296682,2328.90562655,0.00041,30]
[328218389,1717071298568,888.07529785,0.000389,30]
[328218390,1717071301143,289.6688307,0.0004,120]
[328218391,1717071301512,393.870191,0.0004001,30]
[328218392,1717071301556,206.50070708,0.00039,14]
[328218393,1717071303352,216.33610311,0.0004,30]
[328218394,1717071304751,268.873,0.00045644,30]
[328218395,1717071304920,10000.0,0.0004657,10]
[328218396,1717071306154,962.62092436,0.0003784,10]
[328218397,1717071307141,532.92306906,0.00043,21]
[328218398,1717071310491,-16988.2415533,0.00033848,12]
[328218399,1717071310520,-50000.0,0.00033848,20]
[328218400,1717071310547,-50000.0,0.00033848,21]
[328218401,1717071310574,-50000.0,0.00033848,22]
[328218402,1717071310602,-50000.0,0.00033848,23]
[328218403,1717071310629,-50000.0,0.00033848,24]
[328218404,1717071310656,-50000.0,0.00033848,25]
[328218405,1717071310682,-50000.0,0.00033848,26]
[328218406,1717071310709,-50000.0,0.00033848,27]
[328218407,1717071310737,-606.18487053,0.00033848,10]
[328218408,1717071310761,-51808.95536527,0.00033848,20]
[328218409,1717071310786,-516.62119758,0.00033848,15]
[328218410,1717071310812,-264.55675965,0.00033848,10]
[328218411,1717071310837,-1128.8,0.00033848,21]
[328218412,1717071310862,-330.49451263,0.00033848,15]
[328218413,1717071310886,-474.949,0.00033848,30]
[328218414,1717071310911,-152.45628237,0.00033848,120]
[328218415,1717071310934,-152.85714281,0.00033848,120]
[328218416,1717071310958,-252.28897253,0.00033848,30]
[328218417,1717071310984,-1242.55844656,0.00033848,120]
[328218418,1717071311007,-2000.0,0.00033848,30]
[328218419,1717071311031,-2000.0,0.00033848,30]
[328218420,1717071311056,-2000.0,0.00033848,30]
[328218421,1717071311079,-2800.0,0.00033848,120]
[328218422,1717071311104,-642.24110156,0.00033848,120]
[328218423,1717071311128,-1127.37335839,0.00033848,120]
[328218424,1717071311152,-1856.8,0.00033848,30]
[328218425,1717071311176,-284.0,0.00033848,120]
[328218426,1717071311200,-300.78400418,0.00033848,60]
[328218427,1717071311229,-791.70092561,0.00033848,120]
[328218428,1717071311252,-1037.0,0.00033848,30]
[328218429,1717071311277,-1037.0,0.00033848,30]
[328218430,1717071311303,-1037.0,0.00033848,30]
[328218431,1717071311328,-1037.0,0.00033848,30]
[328218432,1717071311351,-1037.0,0.00033848,30]
[328218433,1717071311374,-1037.0,0.00033848,30]
[328218434,1717071311398,-1037.0,0.00033848,30]
[328218435,1717071311422,-1037.0,0.00033848,30]
[328218436,1717071311447,-1037.0,0.00033848,30]
[328218437,1717071311471,-1037.0,0.00033848,30]
[328218438,1717071311497,-1037.0,0.00033848,30]
[328218439,1717071311521,-1037.0,0.00033848,30]
[328218440,1717071311546,-1037.0,0.00033848,30]
[328218441,1717071311570,-1037.0,0.00033848,30]
[328218442,1717071311594,-1037.0,0.00033848,30]
[328218443,1717071311618,-1037.0,0.00033848,30]
[328218444,1717071311642,-1037.0,0.00033848,30]
[328218445,1717071311666,-1037.0,0.00033848,30]
[328218446,1717071311690,-1024.78821442,0.00033848,30]
[328218447,1717071311715,-1037.0,0.00033848,30]
[328218448,1717071311745,-1000.0,0.00033848,60]
[328218449,1717071311771,-1000.0,0.00033848,60]
[328218450,1717071311795,-1000.0,0.00033848,60]
[328218451,1717071311819,-1000.0,0.00033848,60]
[328218452,1717071311843,-1000.0,0.00033848,60]
[328218453,1717071311867,-1000.0,0.00033848,60]
[328218454,1717071311892,-1000.0,0.00033848,60]
[328218455,1717071311921,-1000.0,0.00033848,60]
[328218456,1717071311946,-1076.44646326,0.00033848,60]
[328218457,1717071311971,-492.036121,0.00033848,14]
[328218458,1717071314526,888.07529785,0.000389,30]
[328218459,1717071314739,4917.94802895,0.00038,120]
[328218460,1717071316879,420.31685294,0.00038,120]
[328218461,1717071316986,3589.91875848,0.0004,20]
[328218462,1717071318882,1300.0,0.00046301,30]
[328218463,1717071320015,2179.6183045,0.00035,10]
[328218464,1717071321361,1300.0,0.00046575,30]
[328218465,1717071323494,394.76570213,0.0004001,30]
[328218466,1717071324252,2171.82431941,0.00035,30]
[328218467,1717071327272,216.33610311,0.0004,30]
[328218468,1717071327763,50000.0,0.0004657,10]
[328218469,1717071328150,962.62092436,0.0003784,10]
[328218470,1717071328852,254.58,0.00045,85]
[328218471,1717071332567,5620.51203309,0.00043,120]
[328218472,1717071332909,2871.93500678,0.0004,20]